[Event "Titled Tuesday Blitz November 22 Early 2022"]
[White "Jimenez Almeida, Luis David"]
[Black "Kopylov, Alexander A."]
[WhiteFideId "22242244"]
[BlackFideId "4164857"]
[WhiteElo "2158"]
[BlackElo "2436"]
[Result "0-1"]
[Round "08"]
[TimeControl "180+1"]
[Date "2022.11.23"]
[WhiteClock "0:00:45"]
[BlackClock "0:01:16"]

1. e4 {[%clk 0:03:00]}  e5 {[%clk 0:02:59]} 2. Nf3 {[%clk 0:03:00]}  Nc6 {[%clk 0:02:59]} 3. Bb5 {[%clk 0:03:00]}  a6 {[%clk 0:02:59]} 4. Ba4 {[%clk 0:03:00]}  d6 {[%clk 0:02:59]} 5. O-O {[%clk 0:03:00]}  Bd7 {[%clk 0:03:00]} 6. c3 {[%clk 0:02:59]}  Nf6 {[%clk 0:03:00]} 7. Re1 {[%clk 0:02:58]}  g6 {[%clk 0:03:00]} 8. d3 {[%clk 0:02:52]}  Bg7 {[%clk 0:03:00]} 9. Nbd2 {[%clk 0:02:50]}  O-O {[%clk 0:03:01]} 10. Nf1 {[%clk 0:02:48]}  Nh5 {[%clk 0:03:00]} 11. a3 {[%clk 0:02:43]}  Qe8 {[%clk 0:03:00]} 12. Bb3 {[%clk 0:02:42]}  Kh8 {[%clk 0:02:59]} 13. d4 {[%clk 0:02:37]}  f5 {[%clk 0:02:59]} 14. exf5 {[%clk 0:02:36]}  gxf5 {[%clk 0:03:00]} 15. dxe5 {[%clk 0:02:35]}  dxe5 {[%clk 0:03:01]} 16. Ng5 {[%clk 0:02:28]}  Nf6 {[%clk 0:03:00]} 17. Ng3 {[%clk 0:02:19]}  Rd8 {[%clk 0:02:57]} 18. Qe2 {[%clk 0:02:17]}  h6 {[%clk 0:02:57]} 19. Nf3 {[%clk 0:02:15]}  e4 {[%clk 0:02:58]} 20. Nh4 {[%clk 0:02:11]}  Ne7 {[%clk 0:01:44]} 21. Bf4 {[%clk 0:02:05]}  Nfd5 {[%clk 0:01:31]} 22. Nh5 {[%clk 0:01:47]}  Nxf4 {[%clk 0:01:26]} 23. Nxf4 {[%clk 0:01:48]}  Bf6 {[%clk 0:01:21]} 24. g3 {[%clk 0:01:34]}  Bxh4 {[%clk 0:01:20]} 25. gxh4 {[%clk 0:01:34]}  Ng6 {[%clk 0:01:21]} 26. Qh5 {[%clk 0:01:30]}  Kh7 {[%clk 0:01:22]} 27. Nh3 {[%clk 0:01:24]}  Qe7 {[%clk 0:01:20]} 28. Rad1 {[%clk 0:00:44]}  Qxh4 {[%clk 0:01:16]} 29. Qxh4 {[%clk 0:00:44]}  Nxh4 {[%clk 0:01:17]} 30. Nf4 {[%clk 0:00:45]}  Nf3+ {[%clk 0:01:16]} 0-1


[Site "https://www.chess.com"]

[Event "Titled Tuesday Blitz November 22 Early 2022"]
[White "Kilic, Eray"]
[Black "Malyi, Viacheslav"]
[WhiteFideId "44517173"]
[BlackFideId "14123983"]
[WhiteElo "2328"]
[BlackElo "2291"]
[Result "1-0"]
[Round "08"]
[TimeControl "180+1"]
[Date "2022.11.23"]
[WhiteClock "0:02:35"]
[BlackClock "0:02:37"]

1. e4 {[%clk 0:03:00]}  e5 {[%clk 0:02:59]} 2. Nf3 {[%clk 0:03:00]}  Nc6 {[%clk 0:03:00]} 3. Bb5 {[%clk 0:03:00]}  a6 {[%clk 0:03:00]} 4. Ba4 {[%clk 0:03:01]}  Nf6 {[%clk 0:03:01]} 5. O-O {[%clk 0:03:01]}  b5 {[%clk 0:03:01]} 6. Bb3 {[%clk 0:03:01]}  Bc5 {[%clk 0:03:02]} 7. c3 {[%clk 0:03:02]}  d6 {[%clk 0:03:02]} 8. d4 {[%clk 0:03:03]}  Bb6 {[%clk 0:03:03]} 9. a4 {[%clk 0:03:03]}  Rb8 {[%clk 0:03:03]} 10. a5 {[%clk 0:03:04]}  Ba7 {[%clk 0:03:03]} 11. Re1 {[%clk 0:03:04]}  O-O {[%clk 0:03:02]} 12. h3 {[%clk 0:03:05]}  Re8 {[%clk 0:03:00]} 13. Bg5 {[%clk 0:03:03]}  h6 {[%clk 0:03:00]} 14. Bh4 {[%clk 0:03:00]}  g5 {[%clk 0:02:57]} 15. Bg3 {[%clk 0:02:47]}  Nh5 {[%clk 0:02:53]} 16. Nxe5 {[%clk 0:02:42]}  dxe5 {[%clk 0:02:49]} 17. Qxh5 {[%clk 0:02:41]}  Qf6 {[%clk 0:02:48]} 18. Nd2 {[%clk 0:02:36]}  exd4 {[%clk 0:02:45]} 19. e5 {[%clk 0:02:35]}  Nxe5 {[%clk 0:02:43]} 20. Rxe5 {[%clk 0:02:34]}  Rxe5 {[%clk 0:02:44]} 21. Bxe5 {[%clk 0:02:35]}  Qxe5 {[%clk 0:02:36]} 22. Qxf7+ {[%clk 0:02:34]}  Kh8 {[%clk 0:02:37]} 23. Qg8# {[%clk 0:02:35]} 1-0


[Site "https://www.chess.com"]

[Event "Titled Tuesday Blitz November 22 Early 2022"]
[White "Kiseljova, Marya"]
[Black "Pinheiro, Iung Alicio de O."]
[WhiteFideId "4155009"]
[BlackFideId "2104350"]
[WhiteElo "1907"]
[BlackElo "2283"]
[Result "0-1"]
[Round "08"]
[TimeControl "180+1"]
[Date "2022.11.23"]
[WhiteClock "0:00:04"]
[BlackClock "0:00:41"]

1. d4 {[%clk 0:03:00]}  Nf6 {[%clk 0:02:59]} 2. c4 {[%clk 0:02:59]}  g6 {[%clk 0:02:59]} 3. Nc3 {[%clk 0:02:59]}  Bg7 {[%clk 0:02:59]} 4. e4 {[%clk 0:02:59]}  d6 {[%clk 0:03:00]} 5. Be2 {[%clk 0:02:58]}  O-O {[%clk 0:03:01]} 6. Bg5 {[%clk 0:02:58]}  a6 {[%clk 0:03:00]} 7. Qd2 {[%clk 0:02:51]}  Nbd7 {[%clk 0:02:57]} 8. Nf3 {[%clk 0:02:48]}  c5 {[%clk 0:02:57]} 9. d5 {[%clk 0:02:47]}  b5 {[%clk 0:02:53]} 10. cxb5 {[%clk 0:02:46]}  Qa5 {[%clk 0:02:53]} 11. bxa6 {[%clk 0:02:41]}  Nb6 {[%clk 0:02:52]} 12. O-O {[%clk 0:02:35]}  Bxa6 {[%clk 0:02:52]} 13. Bxa6 {[%clk 0:02:27]}  Qxa6 {[%clk 0:02:53]} 14. Qc2 {[%clk 0:02:22]}  h6 {[%clk 0:02:44]} 15. Bf4 {[%clk 0:02:18]}  Rfb8 {[%clk 0:02:39]} 16. Nd2 {[%clk 0:02:02]}  Ng4 {[%clk 0:02:36]} 17. Rab1 {[%clk 0:01:47]}  Na4 {[%clk 0:02:32]} 18. h3 {[%clk 0:01:25]}  g5 {[%clk 0:02:22]} 19. Bxg5 {[%clk 0:01:11]}  hxg5 {[%clk 0:02:13]} 20. hxg4 {[%clk 0:01:11]}  Nxc3 {[%clk 0:01:47]} 21. bxc3 {[%clk 0:01:12]}  Rxb1 {[%clk 0:01:45]} 22. Rxb1 {[%clk 0:01:06]}  Qxa2 {[%clk 0:01:46]} 23. Rb8+ {[%clk 0:00:32]}  Kh7 {[%clk 0:01:43]} 24. Qxa2 {[%clk 0:00:30]}  Rxa2 {[%clk 0:01:42]} 25. Nf3 {[%clk 0:00:30]}  Kg6 {[%clk 0:01:40]} 26. Rb7 {[%clk 0:00:24]}  Bf6 {[%clk 0:01:27]} 27. Rc7 {[%clk 0:00:19]}  Rc2 {[%clk 0:01:21]} 28. e5 {[%clk 0:00:18]}  dxe5 {[%clk 0:01:22]} 29. Rxc5 {[%clk 0:00:18]}  e4 {[%clk 0:01:23]} 30. Nd4 {[%clk 0:00:17]}  Rc1+ {[%clk 0:01:15]} 31. Kh2 {[%clk 0:00:17]}  Rf1 {[%clk 0:01:08]} 32. f3 {[%clk 0:00:07]}  Be5+ {[%clk 0:00:57]} 33. g3 {[%clk 0:00:07]}  exf3 {[%clk 0:00:54]} 34. Rc6+ {[%clk 0:00:04]}  f6 {[%clk 0:00:50]} 35. Nf5 {[%clk 0:00:03]}  Rd1 {[%clk 0:00:45]} 36. c4 {[%clk 0:00:03]}  f2 {[%clk 0:00:41]} 37. Ne3 {[%clk 0:00:03]}  Re1 {[%clk 0:00:41]} 38. Kg2 {[%clk 0:00:04]}  Rxe3 {[%clk 0:00:40]} 39. Kxf2 {[%clk 0:00:04]}  Rc3 {[%clk 0:00:41]} 40. Rc7 {[%clk 0:00:04]}  Bxc7 {[%clk 0:00:41]} 0-1


[Site "https://www.chess.com"]

[Event "Titled Tuesday Blitz November 22 Early 2022"]
[White "Kleiman, Jake"]
[Black "Jumabayev, Rinat"]
[WhiteFideId "2020041"]
[BlackFideId "13702661"]
[WhiteElo "2591"]
[BlackElo "2561"]
[Result "0-1"]
[Round "08"]
[TimeControl "180+1"]
[Date "2022.11.22"]
[WhiteClock "0:00:16"]
[BlackClock "0:00:06"]

1. e4 {[%clk 0:03:00]}  c6 {[%clk 0:02:59]} 2. Nc3 {[%clk 0:02:59]}  d5 {[%clk 0:03:00]} 3. Nf3 {[%clk 0:03:00]}  Bg4 {[%clk 0:02:58]} 4. h3 {[%clk 0:02:59]}  Bxf3 {[%clk 0:02:56]} 5. Qxf3 {[%clk 0:03:00]}  e6 {[%clk 0:02:56]} 6. a3 {[%clk 0:03:00]}  Bc5 {[%clk 0:02:53]} 7. g3 {[%clk 0:02:59]}  Nf6 {[%clk 0:02:47]} 8. Bg2 {[%clk 0:02:58]}  Nbd7 {[%clk 0:02:48]} 9. O-O {[%clk 0:02:58]}  Qc7 {[%clk 0:02:47]} 10. d3 {[%clk 0:02:51]}  h6 {[%clk 0:02:44]} 11. Kh1 {[%clk 0:02:46]}  a5 {[%clk 0:02:26]} 12. Qe2 {[%clk 0:02:45]}  dxe4 {[%clk 0:01:56]} 13. dxe4 {[%clk 0:02:43]}  e5 {[%clk 0:01:55]} 14. f4 {[%clk 0:02:36]}  O-O {[%clk 0:01:55]} 15. f5 {[%clk 0:02:30]}  Rad8 {[%clk 0:01:53]} 16. g4 {[%clk 0:02:06]}  Nh7 {[%clk 0:01:53]} 17. h4 {[%clk 0:02:07]}  Be7 {[%clk 0:01:53]} 18. Qf2 {[%clk 0:02:07]}  Nb6 {[%clk 0:01:14]} 19. Qg3 {[%clk 0:01:52]}  Rd6 {[%clk 0:00:50]} 20. g5 {[%clk 0:01:41]}  hxg5 {[%clk 0:00:51]} 21. hxg5 {[%clk 0:01:41]}  Qd8 {[%clk 0:00:50]} 22. f6 {[%clk 0:01:34]}  Nxf6 {[%clk 0:00:31]} 23. gxf6 {[%clk 0:01:35]}  Bxf6 {[%clk 0:00:32]} 24. Bh6 {[%clk 0:01:15]}  Re8 {[%clk 0:00:20]} 25. Rad1 {[%clk 0:01:05]}  Nc4 {[%clk 0:00:16]} 26. Bc1 {[%clk 0:00:46]}  Qe7 {[%clk 0:00:13]} 27. Rxd6 {[%clk 0:00:39]}  Nxd6 {[%clk 0:00:14]} 28. b3 {[%clk 0:00:37]}  Rd8 {[%clk 0:00:12]} 29. a4 {[%clk 0:00:35]}  Ne8 {[%clk 0:00:12]} 30. Qe3 {[%clk 0:00:27]}  g6 {[%clk 0:00:10]} 31. Rd1 {[%clk 0:00:27]}  Rxd1+ {[%clk 0:00:07]} 32. Nxd1 {[%clk 0:00:28]}  Ng7 {[%clk 0:00:08]} 33. Bd2 {[%clk 0:00:26]}  Qd8 {[%clk 0:00:06]} 34. Qd3 {[%clk 0:00:25]}  Qc7 {[%clk 0:00:07]} 35. Qc3 {[%clk 0:00:23]}  b6 {[%clk 0:00:06]} 36. Ne3 {[%clk 0:00:24]}  Ne6 {[%clk 0:00:06]} 37. Qd3 {[%clk 0:00:24]}  Nf4 {[%clk 0:00:05]} 38. Qf1 {[%clk 0:00:23]}  Qd7 {[%clk 0:00:04]} 39. Nc4 {[%clk 0:00:24]}  Nh5 {[%clk 0:00:03]} 40. Qe1 {[%clk 0:00:23]}  b5 {[%clk 0:00:03]} 41. axb5 {[%clk 0:00:23]}  cxb5 {[%clk 0:00:04]} 42. Nxa5 {[%clk 0:00:23]}  Qg4 {[%clk 0:00:04]} 43. Be3 {[%clk 0:00:21]}  Bh4 {[%clk 0:00:04]} 44. Qd2 {[%clk 0:00:18]}  Bg3 {[%clk 0:00:04]} 45. Kg1 {[%clk 0:00:18]}  Qh4 {[%clk 0:00:04]} 46. Kf1 {[%clk 0:00:15]}  Bf4 {[%clk 0:00:03]} 47. Bxf4 {[%clk 0:00:15]}  exf4 {[%clk 0:00:04]} 48. Qf2 {[%clk 0:00:15]}  Ng3+ {[%clk 0:00:05]} 49. Kg1 {[%clk 0:00:15]}  Qh5 {[%clk 0:00:05]} 50. Qf3 {[%clk 0:00:14]}  Qc5+ {[%clk 0:00:03]} 51. Kh2 {[%clk 0:00:14]}  Qe5 {[%clk 0:00:01]} 52. Nc6 {[%clk 0:00:14]}  Qg5 {[%clk 0:00:01]} 53. e5 {[%clk 0:00:13]}  Nh5 {[%clk 0:00:02]} 54. Kg1 {[%clk 0:00:13]}  Qh4 {[%clk 0:00:02]} 55. Nd4 {[%clk 0:00:13]}  Qe1+ {[%clk 0:00:03]} 56. Bf1 {[%clk 0:00:14]}  Qd2 {[%clk 0:00:02]} 57. Ne2 {[%clk 0:00:13]}  Qxc2 {[%clk 0:00:03]} 58. Nxf4 {[%clk 0:00:14]}  Qc5+ {[%clk 0:00:04]} 59. Kg2 {[%clk 0:00:14]}  Qc2+ {[%clk 0:00:03]} 60. Ne2 {[%clk 0:00:14]}  Qb2 {[%clk 0:00:02]} 61. Qe3 {[%clk 0:00:14]}  Ng7 {[%clk 0:00:01]} 62. Kf2 {[%clk 0:00:13]}  Ne6 {[%clk 0:00:02]} 63. Qc3 {[%clk 0:00:14]}  Qa2 {[%clk 0:00:02]} 64. Bg2 {[%clk 0:00:14]}  Qa7+ {[%clk 0:00:02]} 65. Kf1 {[%clk 0:00:14]}  Qa2 {[%clk 0:00:02]} 66. Bd5 {[%clk 0:00:14]}  Ng5 {[%clk 0:00:01]} 67. Qc8+ {[%clk 0:00:14]}  Kg7 {[%clk 0:00:01]} 68. Qc3 {[%clk 0:00:15]}  Qb1+ {[%clk 0:00:02]} 69. Kf2 {[%clk 0:00:14]}  Qf5+ {[%clk 0:00:02]} 70. Ke3 {[%clk 0:00:14]}  Qg4 {[%clk 0:00:01]} 71. e6+ {[%clk 0:00:14]}  f6 {[%clk 0:00:02]} 72. Qc7+ {[%clk 0:00:14]}  Kh6 {[%clk 0:00:02]} 73. Qh2+ {[%clk 0:00:15]}  Kg7 {[%clk 0:00:02]} 74. Qf4 {[%clk 0:00:15]}  Qh3+ {[%clk 0:00:01]} 75. Kd2 {[%clk 0:00:15]}  Nxe6 {[%clk 0:00:02]} 76. Bxe6 {[%clk 0:00:15]}  Qxe6 {[%clk 0:00:03]} 77. Kc2 {[%clk 0:00:15]}  Qxe2+ {[%clk 0:00:03]} 78. Kc3 {[%clk 0:00:16]}  Qe5+ {[%clk 0:00:03]} 79. Qxe5 {[%clk 0:00:16]}  fxe5 {[%clk 0:00:04]} 80. Kb4 {[%clk 0:00:16]}  g5 {[%clk 0:00:05]} 81. Kxb5 {[%clk 0:00:17]}  g4 {[%clk 0:00:05]} 82. Kc6 {[%clk 0:00:15]}  g3 {[%clk 0:00:06]} 83. b4 {[%clk 0:00:16]}  g2 {[%clk 0:00:06]} 0-1


[Site "https://www.chess.com"]

[Event "Titled Tuesday Blitz November 22 Early 2022"]
[White "Koridze, Lile"]
[Black "Kulkarni, Vikramaditya"]
[WhiteFideId "13612514"]
[BlackFideId "5009847"]
[WhiteElo "2050"]
[BlackElo "2273"]
[Result "0-1"]
[Round "08"]
[TimeControl "180+1"]
[Date "2022.11.23"]
[WhiteClock "0:00:02"]
[BlackClock "0:00:04"]

1. d4 {[%clk 0:03:00]}  d6 {[%clk 0:02:59]} 2. Nf3 {[%clk 0:02:52]}  Nf6 {[%clk 0:02:56]} 3. c4 {[%clk 0:02:52]}  g6 {[%clk 0:02:51]} 4. Nc3 {[%clk 0:02:50]}  Bg7 {[%clk 0:02:51]} 5. e4 {[%clk 0:02:48]}  O-O {[%clk 0:02:50]} 6. Be2 {[%clk 0:02:48]}  Na6 {[%clk 0:02:46]} 7. O-O {[%clk 0:02:48]}  c6 {[%clk 0:02:46]} 8. d5 {[%clk 0:02:47]}  Nc5 {[%clk 0:02:42]} 9. Qc2 {[%clk 0:02:46]}  a5 {[%clk 0:02:41]} 10. Be3 {[%clk 0:02:33]}  Bg4 {[%clk 0:02:33]} 11. Bxc5 {[%clk 0:02:32]}  dxc5 {[%clk 0:02:32]} 12. dxc6 {[%clk 0:02:32]}  bxc6 {[%clk 0:02:30]} 13. Na4 {[%clk 0:02:30]}  Nd7 {[%clk 0:02:28]} 14. Rfd1 {[%clk 0:02:25]}  Qc7 {[%clk 0:02:20]} 15. Rab1 {[%clk 0:02:12]}  Bxf3 {[%clk 0:02:11]} 16. Bxf3 {[%clk 0:02:12]}  Bd4 {[%clk 0:02:11]} 17. a3 {[%clk 0:02:08]}  Ne5 {[%clk 0:02:00]} 18. Be2 {[%clk 0:01:59]}  Rfd8 {[%clk 0:01:59]} 19. g3 {[%clk 0:01:57]}  Qd6 {[%clk 0:01:53]} 20. Kg2 {[%clk 0:01:56]}  Qe6 {[%clk 0:01:46]} 21. b3 {[%clk 0:01:48]}  h5 {[%clk 0:01:43]} 22. h4 {[%clk 0:01:48]}  Ng4 {[%clk 0:01:41]} 23. Bxg4 {[%clk 0:01:45]}  hxg4 {[%clk 0:01:40]} 24. Qe2 {[%clk 0:01:40]}  Rab8 {[%clk 0:01:37]} 25. Rd3 {[%clk 0:01:29]}  Rd6 {[%clk 0:01:32]} 26. e5 {[%clk 0:01:24]}  Bxe5 {[%clk 0:01:13]} 27. Nxc5 {[%clk 0:01:22]}  Qf5 {[%clk 0:01:13]} 28. Rbd1 {[%clk 0:01:14]}  Rbd8 {[%clk 0:01:08]} 29. Ne4 {[%clk 0:01:02]}  Rd4 {[%clk 0:00:48]} 30. Rxd4 {[%clk 0:00:59]}  Rxd4 {[%clk 0:00:48]} 31. Rxd4 {[%clk 0:00:57]}  Bxd4 {[%clk 0:00:48]} 32. Nd2 {[%clk 0:00:51]}  Bc5 {[%clk 0:00:46]} 33. a4 {[%clk 0:00:44]}  Kg7 {[%clk 0:00:42]} 34. Ne4 {[%clk 0:00:42]}  Bd4 {[%clk 0:00:40]} 35. Ng5 {[%clk 0:00:35]}  Bf6 {[%clk 0:00:36]} 36. Ne4 {[%clk 0:00:32]}  Be5 {[%clk 0:00:36]} 37. Nc5 {[%clk 0:00:28]}  Bd6 {[%clk 0:00:34]} 38. Ne4 {[%clk 0:00:26]}  Bb4 {[%clk 0:00:34]} 39. Ng5 {[%clk 0:00:23]}  Ba3 {[%clk 0:00:26]} 40. Ne4 {[%clk 0:00:22]}  f6 {[%clk 0:00:25]} 41. Nc3 {[%clk 0:00:19]}  Kf7 {[%clk 0:00:23]} 42. Ne4 {[%clk 0:00:17]}  Bb4 {[%clk 0:00:22]} 43. Qd3 {[%clk 0:00:14]}  Qe6 {[%clk 0:00:20]} 44. Qe2 {[%clk 0:00:12]}  Kg7 {[%clk 0:00:19]} 45. Qd3 {[%clk 0:00:11]}  Qf5 {[%clk 0:00:18]} 46. Qe2 {[%clk 0:00:10]}  Qd7 {[%clk 0:00:18]} 47. Qe3 {[%clk 0:00:08]}  Qe6 {[%clk 0:00:16]} 48. Qd3 {[%clk 0:00:08]}  Qe5 {[%clk 0:00:16]} 49. Qe3 {[%clk 0:00:05]}  f5 {[%clk 0:00:15]} 50. Ng5 {[%clk 0:00:05]}  Qxe3 {[%clk 0:00:15]} 51. fxe3 {[%clk 0:00:06]}  Kf6 {[%clk 0:00:15]} 52. e4 {[%clk 0:00:06]}  Bd2 {[%clk 0:00:14]} 53. exf5 {[%clk 0:00:06]}  gxf5 {[%clk 0:00:13]} 54. Nh7+ {[%clk 0:00:06]}  Kg7 {[%clk 0:00:13]} 55. Ng5 {[%clk 0:00:06]}  Bxg5 {[%clk 0:00:13]} 56. hxg5 {[%clk 0:00:07]}  c5 {[%clk 0:00:13]} 57. Kf2 {[%clk 0:00:07]}  Kg6 {[%clk 0:00:13]} 58. Ke3 {[%clk 0:00:04]}  Kxg5 {[%clk 0:00:13]} 59. b4 {[%clk 0:00:05]}  cxb4 {[%clk 0:00:11]} 60. c5 {[%clk 0:00:05]}  b3 {[%clk 0:00:11]} 61. c6 {[%clk 0:00:04]}  b2 {[%clk 0:00:10]} 62. c7 {[%clk 0:00:05]}  b1=Q {[%clk 0:00:09]} 63. c8=Q {[%clk 0:00:05]}  Qe1+ {[%clk 0:00:09]} 64. Kd3 {[%clk 0:00:05]}  Qxg3+ {[%clk 0:00:09]} 65. Ke2 {[%clk 0:00:04]}  Qf3+ {[%clk 0:00:09]} 66. Ke1 {[%clk 0:00:04]}  Qe4+ {[%clk 0:00:09]} 67. Kf1 {[%clk 0:00:04]}  Qd3+ {[%clk 0:00:08]} 68. Ke1 {[%clk 0:00:04]}  Qe3+ {[%clk 0:00:08]} 69. Kf1 {[%clk 0:00:05]}  Qf3+ {[%clk 0:00:07]} 70. Ke1 {[%clk 0:00:05]}  Qh1+ {[%clk 0:00:07]} 71. Kf2 {[%clk 0:00:05]}  Qh2+ {[%clk 0:00:07]} 72. Kf1 {[%clk 0:00:05]}  Qf4+ {[%clk 0:00:06]} 73. Ke2 {[%clk 0:00:04]}  Qd6 {[%clk 0:00:06]} 74. Qg8+ {[%clk 0:00:04]}  Kf4 {[%clk 0:00:06]} 75. Qc4+ {[%clk 0:00:03]}  Kg3 {[%clk 0:00:06]} 76. Qc3+ {[%clk 0:00:04]}  Kh4 {[%clk 0:00:06]} 77. Qh8+ {[%clk 0:00:03]}  Kg5 {[%clk 0:00:06]} 78. Qg7+ {[%clk 0:00:04]}  Kf4 {[%clk 0:00:05]} 79. Qc3 {[%clk 0:00:02]}  Qe5+ {[%clk 0:00:04]} 0-1


[Site "https://www.chess.com"]

[Event "Titled Tuesday Blitz November 22 Early 2022"]
[White "Kovacevic, Radmila"]
[Black "Muminova, Nafisa"]
[WhiteFideId "933171"]
[BlackFideId "14201526"]
[WhiteElo "2208"]
[BlackElo "2258"]
[Result "1-0"]
[Round "08"]
[TimeControl "180+1"]
[Date "2022.11.23"]
[WhiteClock "0:00:16"]
[BlackClock "0:00:02"]

1. e4 {[%clk 0:03:00]}  e6 {[%clk 0:02:59]} 2. d3 {[%clk 0:03:00]}  d5 {[%clk 0:02:59]} 3. Qe2 {[%clk 0:03:00]}  Be7 {[%clk 0:02:58]} 4. Nf3 {[%clk 0:02:58]}  Nc6 {[%clk 0:02:53]} 5. c3 {[%clk 0:02:57]}  dxe4 {[%clk 0:02:48]} 6. dxe4 {[%clk 0:02:58]}  Nf6 {[%clk 0:02:48]} 7. e5 {[%clk 0:02:57]}  Nd5 {[%clk 0:02:47]} 8. g3 {[%clk 0:02:55]}  O-O {[%clk 0:02:31]} 9. Bg2 {[%clk 0:02:55]}  b6 {[%clk 0:02:24]} 10. O-O {[%clk 0:02:55]}  a5 {[%clk 0:02:22]} 11. h4 {[%clk 0:02:54]}  Ba6 {[%clk 0:02:21]} 12. Qd1 {[%clk 0:02:50]}  Bxf1 {[%clk 0:02:19]} 13. Bxf1 {[%clk 0:02:38]}  Qb8 {[%clk 0:01:57]} 14. a4 {[%clk 0:02:14]}  Rd8 {[%clk 0:01:54]} 15. Qc2 {[%clk 0:02:14]}  Qb7 {[%clk 0:01:51]} 16. Bd3 {[%clk 0:02:13]}  h6 {[%clk 0:01:49]} 17. Nbd2 {[%clk 0:02:11]}  Bc5 {[%clk 0:01:37]} 18. Ne4 {[%clk 0:02:11]}  Bf8 {[%clk 0:01:31]} 19. Bd2 {[%clk 0:02:08]}  Nde7 {[%clk 0:01:24]} 20. Re1 {[%clk 0:02:03]}  Nf5 {[%clk 0:01:08]} 21. g4 {[%clk 0:02:02]}  Nfe7 {[%clk 0:01:07]} 22. Bc4 {[%clk 0:01:44]}  Rd7 {[%clk 0:00:59]} 23. Bxh6 {[%clk 0:01:43]}  Rad8 {[%clk 0:00:52]} 24. Nfg5 {[%clk 0:01:34]}  Ng6 {[%clk 0:00:49]} 25. Nxe6 {[%clk 0:01:24]}  Ncxe5 {[%clk 0:00:49]} 26. Nxd8 {[%clk 0:01:23]}  Rxd8 {[%clk 0:00:48]} 27. Bxf7+ {[%clk 0:01:02]}  Kxf7 {[%clk 0:00:40]} 28. Ng5+ {[%clk 0:01:00]}  Kg8 {[%clk 0:00:33]} 29. Rxe5 {[%clk 0:00:58]}  Qc6 {[%clk 0:00:24]} 30. Qb3+ {[%clk 0:00:49]}  Kh8 {[%clk 0:00:19]} 31. Nf7+ {[%clk 0:00:47]}  Kh7 {[%clk 0:00:19]} 32. Nxd8 {[%clk 0:00:47]}  Qf3 {[%clk 0:00:17]} 33. Re3 {[%clk 0:00:38]}  Qxg4+ {[%clk 0:00:13]} 34. Rg3 {[%clk 0:00:38]}  Qxh4 {[%clk 0:00:11]} 35. Bg5 {[%clk 0:00:38]}  Qh5 {[%clk 0:00:10]} 36. Qc2 {[%clk 0:00:33]}  Bd6 {[%clk 0:00:09]} 37. Rg2 {[%clk 0:00:28]}  Kg8 {[%clk 0:00:09]} 38. Qb3+ {[%clk 0:00:19]}  Kh7 {[%clk 0:00:08]} 39. Nf7 {[%clk 0:00:18]}  Ne7 {[%clk 0:00:04]} 40. Nxd6 {[%clk 0:00:17]}  cxd6 {[%clk 0:00:02]} 41. Bxe7 {[%clk 0:00:16]} 1-0


[Site "https://www.chess.com"]

[Event "Titled Tuesday Blitz November 22 Early 2022"]
[White "Kriti Mayur Patel"]
[Black "monkins"]
[WhiteFideId "35061780"]
[WhiteElo "1306"]
[BlackElo "2134"]
[Result "0-1"]
[Round "08"]
[TimeControl "180+1"]
[Date "2022.11.23"]
[WhiteClock "0:00:18"]
[BlackClock "0:00:19"]

1. e4 {[%clk 0:02:35]}  c6 {[%clk 0:02:59]} 2. d4 {[%clk 0:02:35]}  d5 {[%clk 0:03:00]} 3. exd5 {[%clk 0:02:36]}  cxd5 {[%clk 0:03:00]} 4. Bd3 {[%clk 0:02:37]}  Nc6 {[%clk 0:02:59]} 5. c3 {[%clk 0:02:37]}  Nf6 {[%clk 0:02:58]} 6. Bf4 {[%clk 0:02:38]}  Bg4 {[%clk 0:02:56]} 7. f3 {[%clk 0:02:38]}  Bh5 {[%clk 0:02:53]} 8. Ne2 {[%clk 0:02:39]}  e6 {[%clk 0:02:50]} 9. O-O {[%clk 0:02:40]}  Bd6 {[%clk 0:02:50]} 10. Bg3 {[%clk 0:02:40]}  O-O {[%clk 0:02:47]} 11. Nd2 {[%clk 0:02:38]}  Bg6 {[%clk 0:02:44]} 12. Bb5 {[%clk 0:02:34]}  a6 {[%clk 0:02:42]} 13. Ba4 {[%clk 0:02:33]}  b5 {[%clk 0:02:41]} 14. Bc2 {[%clk 0:02:33]}  b4 {[%clk 0:02:34]} 15. Nf4 {[%clk 0:02:30]}  Bxf4 {[%clk 0:02:23]} 16. Bxf4 {[%clk 0:02:26]}  bxc3 {[%clk 0:02:23]} 17. bxc3 {[%clk 0:02:25]}  Na5 {[%clk 0:02:18]} 18. Rb1 {[%clk 0:02:16]}  Rc8 {[%clk 0:02:14]} 19. Bxg6 {[%clk 0:02:11]}  hxg6 {[%clk 0:02:13]} 20. Qc2 {[%clk 0:02:10]}  Nc4 {[%clk 0:02:07]} 21. Nxc4 {[%clk 0:02:06]}  Rxc4 {[%clk 0:02:08]} 22. Rfc1 {[%clk 0:02:04]}  Qa5 {[%clk 0:02:06]} 23. Bd6 {[%clk 0:02:00]}  Rfc8 {[%clk 0:02:04]} 24. Bb4 {[%clk 0:01:57]}  Qc7 {[%clk 0:02:01]} 25. Qd3 {[%clk 0:01:51]}  Nd7 {[%clk 0:01:55]} 26. Rb3 {[%clk 0:01:45]}  a5 {[%clk 0:01:43]} 27. Ba3 {[%clk 0:01:45]}  a4 {[%clk 0:01:26]} 28. Rb5 {[%clk 0:01:45]}  Rxc3 {[%clk 0:01:23]} 29. Rxc3 {[%clk 0:01:30]}  Qxc3 {[%clk 0:01:24]} 30. Qxc3 {[%clk 0:01:27]}  Rxc3 {[%clk 0:01:25]} 31. Bc5 {[%clk 0:01:26]}  Rc1+ {[%clk 0:01:21]} 32. Kf2 {[%clk 0:01:24]}  Rc2+ {[%clk 0:01:22]} 33. Kg3 {[%clk 0:01:22]}  Rxa2 {[%clk 0:01:22]} 34. Rb7 {[%clk 0:01:19]}  Nxc5 {[%clk 0:01:20]} 35. dxc5 {[%clk 0:01:19]}  Rc2 {[%clk 0:01:20]} 36. Rb8+ {[%clk 0:01:18]}  Kh7 {[%clk 0:01:18]} 37. Ra8 {[%clk 0:01:12]}  Rxc5 {[%clk 0:01:15]} 38. Rxa4 {[%clk 0:01:12]}  g5 {[%clk 0:01:15]} 39. Ra7 {[%clk 0:01:13]}  Kg6 {[%clk 0:01:15]} 40. Rd7 {[%clk 0:01:11]}  Rc6 {[%clk 0:01:10]} 41. h4 {[%clk 0:01:08]}  gxh4+ {[%clk 0:01:10]} 42. Kxh4 {[%clk 0:01:08]}  f6 {[%clk 0:00:51]} 43. Kg3 {[%clk 0:00:55]}  Rc5 {[%clk 0:00:49]} 44. Kh4 {[%clk 0:00:55]}  e5 {[%clk 0:00:48]} 45. g4 {[%clk 0:00:54]}  d4 {[%clk 0:00:44]} 46. Kg3 {[%clk 0:00:48]}  Rc3 {[%clk 0:00:42]} 47. Kf2 {[%clk 0:00:47]}  Re3 {[%clk 0:00:37]} 48. f4 {[%clk 0:00:44]}  Re4 {[%clk 0:00:31]} 49. f5+ {[%clk 0:00:39]}  Kh6 {[%clk 0:00:29]} 50. Kf3 {[%clk 0:00:37]}  Re3+ {[%clk 0:00:28]} 51. Kf2 {[%clk 0:00:35]}  Rb3 {[%clk 0:00:27]} 52. Ke2 {[%clk 0:00:32]}  Kg5 {[%clk 0:00:24]} 53. Rxg7+ {[%clk 0:00:31]}  Kf4 {[%clk 0:00:24]} 54. Rg6 {[%clk 0:00:29]}  e4 {[%clk 0:00:24]} 55. g5 {[%clk 0:00:19]}  Rb2+ {[%clk 0:00:21]} 56. Ke1 {[%clk 0:00:18]}  Kxf5 {[%clk 0:00:19]} 57. Rxf6+ {[%clk 0:00:17]}  Kxg5 {[%clk 0:00:20]} 58. Re6 {[%clk 0:00:17]}  Kf4 {[%clk 0:00:19]} 59. Rd6 {[%clk 0:00:18]}  Ke3 {[%clk 0:00:19]} 60. Re6 {[%clk 0:00:18]}  Rb1# {[%clk 0:00:19]} 0-1


[Site "https://www.chess.com"]